fUST/lending_fUST_20240606
["ID","MTS","AMOUNT","RATE_DAILY","PERIOD"]
[328618556,1717619431876,-2183.17337301,0.00019998,2]
[328618559,1717619431885,-562.9870302,0.00019998,2]
[328618562,1717619431894,-375.75436892,0.00019999,2]
[328618565,1717619431903,-3570.33252391,0.00019999,2]
[328618568,1717619431912,-931.42086602,0.0002,2]
[328618571,1717619431922,-1354.21950592,0.0002,2]
[328618574,1717619431931,-994.88895348,0.0002118,2]
[328618576,1717619431940,-4235.50878984,0.00021228,2]
[328618580,1717619431950,-153.0,0.00021261,2]
[328618583,1717619431959,-166.93153526,0.00021439,2]
[328618585,1717619431969,-239.8138,0.00021482,2]
[328618587,1717619431979,-3000.0,0.000215,2]
[328618589,1717619431988,-3000.0,0.0002151,2]
[328618592,1717619431998,-3000.0,0.0002152,2]
[328618593,1717619432007,-3000.0,0.0002153,2]
[328618595,1717619432017,-350.0,0.00021539,2]
[328618597,1717619432026,-3000.0,0.0002154,2]
[328618599,1717619432035,-3000.0,0.0002155,2]
[328618601,1717619432046,-3000.0,0.0002156,2]
[328618603,1717619432055,-811.33566221,0.0002157,2]
[328618630,1717619432303,-316.23475701,0.0002157,2]
[328618632,1717619432316,-1872.42958078,0.0002157,2]
[328618634,1717619432325,-3000.0,0.0002158,2]
[328618636,1717619432334,-477.0,0.0002158,3]
[328618638,1717619432343,-1459.5026007,0.00021588,3]
[328618640,1717619432353,-529.19112688,0.00021588,2]
[328618642,1717619432362,-3435.6210162,0.00021588,2]
[328618644,1717619432371,-685.52037713,0.00021588,2]
[328618646,1717619432380,-500.0,0.00021589,2]
[328618648,1717619432389,-500.0,0.00021589,2]
[328618650,1717619432399,-500.0,0.00021589,2]
[328618652,1717619432408,-384.06200437,0.00021589,2]
[328618654,1717619432417,-500.0,0.00021589,2]
[328618656,1717619432426,-500.0,0.00021589,2]
[328618658,1717619432435,-292.08323093,0.00021589,2]
[328618660,1717619432443,-500.0,0.00021589,2]
[328618662,1717619432453,-500.0,0.00021589,2]
[328618664,1717619432462,-500.0,0.00021589,2]
[328618666,1717619432471,-306.63161917,0.00021589,2]
[328618668,1717619432483,-500.0,0.00021589,2]
[328618670,1717619432493,-500.0,0.00021589,2]
[328618672,1717619432502,-236.61092392,0.00021589,2]
[328618674,1717619432511,-501.41214728,0.00021589,2]
[328618676,1717619432520,-500.0,0.00021589,2]
[328618678,1717619432530,-500.0,0.00021589,2]
[328618680,1717619432541,-500.0,0.00021589,2]
[328618681,1717619432550,-500.0,0.00021589,2]
[328618684,1717619432559,-500.0,0.00021589,2]
[328618685,1717619432571,-500.0,0.00021589,2]
[328618687,1717619432580,-500.0,0.00021589,2]
[328618689,1717619432589,-500.0,0.00021589,2]
[328618691,1717619432598,-500.0,0.00021589,2]
[328618693,1717619432607,-500.0,0.00021589,2]
[328618694,1717619432615,-112.18698505,0.00021589,2]
[328618731,1717619437936,-2071.63731922,0.00021179,2]
[328618732,1717619437946,-150.0,0.00021204,2]
[328618733,1717619437955,-387.81301495,0.00021589,2]
[328618734,1717619437964,-500.0,0.00021589,2]
[328618735,1717619437973,-500.0,0.00021589,2]
[328618736,1717619437983,-3414.46246837,0.0002159,7]
[328618737,1717619437992,-286.47075578,0.0002159,2]
[328618738,1717619438000,-225.02004134,0.0002159,2]
[328618739,1717619438010,-101690.35185039,0.0002159,2]
[328618740,1717619438025,-744.67713108,0.0002159,2]
[328619225,1717619445804,-1715.2985261,0.00020757,2]
[328619226,1717619445815,-434.71883211,0.0002149,2]
[328619227,1717619445825,-931.42086602,0.00021589,2]
[328619228,1717619445834,-21874.00194068,0.0002159,2]
[328619229,1717619445844,-12845.1977116,0.0002159,2]
[328619230,1717619445854,-3989.07453341,0.0002159,2]
[328619231,1717619445864,-471.86986171,0.0002159,2]
[328619232,1717619445875,-2400.35210555,0.0002159,2]
[328619233,1717619445884,-3000.0,0.0002159,2]
[328619234,1717619445894,-5873.881177,0.000216,2]
[328619235,1717619445903,-166.93153526,0.00021817,2]
[328619236,1717619445913,-500.0,0.00021917,2]
[328619237,1717619445923,-500.0,0.00021917,2]
[328619238,1717619445933,-500.0,0.00021917,2]
[328619239,1717619445942,-500.0,0.00021917,2]
[328619240,1717619445952,-500.0,0.00021917,2]
[328619241,1717619445961,-500.0,0.00021917,2]
[328619242,1717619445971,-156.29541656,0.00021917,2]
[328619243,1717619445980,-500.0,0.00021917,2]
[328619244,1717619445990,-500.0,0.00021917,2]
[328619245,1717619446000,-500.0,0.00021917,2]
[328619246,1717619446009,-500.0,0.00021917,2]
[328619247,1717619446019,-500.0,0.00021917,2]
[328619248,1717619446028,-552.52,0.00021917,2]
[328619249,1717619446038,-500.0,0.00021917,2]
[328619250,1717619446048,-407.23110176,0.00021917,2]
[328619251,1717619446059,-592.63458382,0.00021917,2]
[328619252,1717619446069,-500.0,0.00021917,2]
[328619253,1717619446078,-500.0,0.00021917,2]
[328619254,1717619446088,-500.0,0.00021917,2]
[328619255,1717619446097,-500.0,0.00021917,2]
[328619256,1717619446107,-500.0,0.00021917,2]
[328619257,1717619446116,-500.0,0.00021917,2]
[328619258,1717619446126,-645.42082031,0.00021917,2]
[328619259,1717619446136,-500.0,0.00021917,2]
[328619260,1717619446146,-500.0,0.00021917,2]
[328619261,1717619446155,-500.0,0.00021917,2]
[328619262,1717619446165,-500.0,0.00021917,2]
[328619263,1717619446174,-532.28,0.00021917,2]
[328619264,1717619446184,-500.0,0.00021917,2]
[328619265,1717619446193,-544.45,0.00021917,2]
[328619266,1717619446202,-500.0,0.00021917,2]
[328619267,1717619446211,-500.0,0.00021917,2]
[328619268,1717619446220,-500.0,0.00021917,2]
[328619269,1717619446230,-500.0,0.00021917,2]
[328619270,1717619446239,-500.0,0.00021917,2]
[328619271,1717619446249,-500.0,0.00021917,2]
[328619272,1717619446258,-500.0,0.00021917,2]
[328619273,1717619446267,-500.0,0.00021917,2]
[328619274,1717619446277,-500.0,0.00021917,2]
[328619275,1717619446286,-500.0,0.00021917,2]
[328619276,1717619446295,-278.57990888,0.00021917,2]
[328619277,1717619446308,-500.0,0.00021917,2]
[328619278,1717619446317,-500.0,0.00021917,2]
[328619280,1717619446326,-500.0,0.00021917,2]
[328619282,1717619446336,-500.0,0.00021917,2]
[328619284,1717619446346,-500.0,0.00021917,2]
[328619286,1717619446355,-500.0,0.00021917,2]
[328619288,1717619446365,-500.0,0.00021917,2]
[328619290,1717619446374,-504.20810928,0.00021917,2]
[328619292,1717619446384,-315.43907049,0.00021917,2]
[328619294,1717619446393,-500.0,0.00021917,2]
[328619296,1717619446402,-500.0,0.00021917,2]
[328619298,1717619446411,-500.0,0.00021917,2]
[328619300,1717619446420,-500.0,0.00021917,2]
[328619302,1717619446430,-500.0,0.00021917,2]
[328619304,1717619446439,-500.0,0.00021917,2]
[328619306,1717619446449,-500.0,0.00021917,2]
[328619308,1717619446458,-500.0,0.00021917,2]
[328619310,1717619446468,-500.0,0.00021917,2]
[328619312,1717619446478,-500.0,0.00021917,2]
[328619314,1717619446491,-500.0,0.00021917,2]
[328619316,1717619446501,-287.25126348,0.00021917,2]
[328619318,1717619446510,-558.88,0.00021917,2]
[328619320,1717619446519,-500.0,0.00021917,2]
[328619322,1717619446529,-500.0,0.00021917,2]
[328619324,1717619446539,-500.0,0.00021917,2]
[328619326,1717619446550,-500.0,0.00021917,2]
[328619328,1717619446562,-500.0,0.00021917,2]
[328619330,1717619446573,-276.65340996,0.00021917,2]
[328619332,1717619446583,-500.0,0.00021917,2]
[328619334,1717619446592,-500.0,0.00021917,2]
[328619336,1717619446602,-500.0,0.00021917,2]
[328619338,1717619446611,-500.0,0.00021917,2]
[328619340,1717619446620,-500.0,0.00021917,2]
[328619341,1717619446630,-500.0,0.00021917,2]
[328619344,1717619446639,-500.0,0.00021917,2]
[328619346,1717619446649,-500.0,0.00021917,2]
[328619347,1717619446658,-170.42,0.00021917,2]
[328619350,1717619446667,-500.0,0.00021917,2]
[328619352,1717619446677,-500.0,0.00021917,2]
[328619354,1717619446687,-21793.9693853,0.00021918,2]
[328619356,1717619446697,-166.666666,0.00021918,2]
[328619358,1717619446706,-2505.36006739,0.00022,2]
[328619360,1717619446716,-30474.19475863,0.00022,2]
[328619703,1717619453483,209.46028812,9.999e-05,2]
[328619705,1717619455803,2093.42945296,9.999e-05,2]
[328619709,1717619507787,1351.6315964,9.999e-05,2]
[328619728,1717619682331,33306.86406162,0.00025,120]
[328619738,1717619824068,455.31253195,0.00029672,40]
[328619740,1717619835837,923.52744316,0.00014,2]
[328619742,1717620068455,9598.3717631,0.0001802,7]
[328619748,1717620286591,200.30096632,9.999e-05,2]
[328619754,1717620303152,1966.31813217,0.00029656,40]
[328619760,1717620408769,155.0,9.999e-05,2]
[328619847,1717620632208,-25094.3547948,0.00018625,2]
[328619849,1717620632218,-468.799886,0.00018626,2]
[328619851,1717620632227,-19137.57269146,0.00018626,2]
[328619853,1717620632239,-1302.0,0.00018626,2]
[328619855,1717620632251,-4460.42730854,0.00018626,2]
[328619857,1717620632260,-200.30096632,0.00018858,2]
[328619858,1717620632272,-469.84364084,0.00018859,2]
[328619860,1717620632281,-167.596119,0.00019243,2]
[328619862,1717620632291,-3000.0,0.00019641,2]
[328619864,1717620632300,-6758.91927669,0.00019718,2]
[328619865,1717620632309,-931.42086602,0.0002,2]
[328619867,1717620632319,-1354.21950592,0.0002,2]
[328619869,1717620632329,-469.84364079,0.00020008,2]
[328619871,1717620632338,-393.31911132,0.000203,2]
[328619873,1717620632347,-622.69606142,0.00020993,2]
[328619874,1717620632357,-3451.68990065,0.00021,2]
[328619876,1717620632366,-2068.63808262,0.00021,2]
[328619878,1717620632375,-2071.63731922,0.00021091,2]
[328619880,1717620632384,-469.84364079,0.00021156,2]
[328619881,1717620632393,-267.08855665,0.0002116,2]
[328619882,1717620632402,-243.19151,0.0002126,2]
[328619883,1717620632412,-3000.0,0.000215,2]
[328619884,1717620632420,-8928.1817868,0.0002159,2]
[328619885,1717620632429,-4223.75127225,0.00021752,2]
[328619886,1717620632438,-267.08855665,0.00021837,2]
[328619887,1717620632447,-500.0,0.00021917,2]
[328619888,1717620632456,-500.0,0.00021917,2]
[328619889,1717620632465,-500.0,0.00021917,2]
[328619890,1717620632475,-619.39,0.00021917,2]
[328619891,1717620632484,-500.0,0.00021917,2]
[328619892,1717620632493,-500.0,0.00021917,2]
[328619893,1717620632501,-500.0,0.00021917,2]
[328619894,1717620632511,-617.46,0.00021917,2]
[328619895,1717620632522,-500.0,0.00021917,2]
[328619896,1717620632531,-500.0,0.00021917,2]
[328619897,1717620632539,-500.0,0.00021917,2]
[328619898,1717620632549,-500.0,0.00021917,2]
[328619899,1717620632558,-500.0,0.00021917,2]
[328619900,1717620632567,-500.0,0.00021917,2]
[328619901,1717620632576,-500.0,0.00021917,2]
[328619902,1717620632584,-500.0,0.00021917,2]
[328619903,1717620632594,-500.0,0.00021917,2]
[328619904,1717620632603,-500.0,0.00021917,2]
[328619906,1717620632612,-500.0,0.00021917,2]
[328619908,1717620632621,-500.0,0.00021917,2]
[328619910,1717620632630,-500.0,0.00021917,2]
[328619912,1717620632639,-183.68247727,0.00021917,2]
[328619914,1717620632648,-500.0,0.00021917,2]
[328619916,1717620632657,-500.0,0.00021917,2]
[328619918,1717620632666,-630.6169235,0.00021917,2]
[328619920,1717620632676,-500.0,0.00021917,2]
[328619921,1717620632685,-500.0,0.00021917,2]
[328619924,1717620632695,-500.0,0.00021917,2]
[328619925,1717620632704,-166.666666,0.00021918,2]
[328619927,1717620632713,-723.49,0.0002199,3]
[328619930,1717620632723,-11340.61794629,0.00022,2]
[328620504,1717620638146,-2557.9422314,0.00019314,2]
[328620506,1717620638158,-577.08921111,0.00021916,2]
[328620508,1717620638168,-164.59800187,0.00021916,2]
[328620510,1717620638178,-500.0,0.00021916,2]
[328620512,1717620638189,-277.75808324,0.00021916,2]
[328621370,1717620646041,-222.24191676,0.00021916,2]
[328621372,1717620646051,-497.54808324,0.00021916,2]
[328621831,1717621688510,155.0,9.999e-05,2]
[328622516,1717621842191,-200.30096632,0.00014999,2]
[328622518,1717621842202,-1099.91705711,0.00015,2]
[328622520,1717621842213,-699.78197657,0.00015,2]
[328622523,1717621842228,-245.39063194,0.00015,2]
[328622525,1717621842239,-3069.90171711,0.0001676,2]
[328622527,1717621842250,-1729.9735818,0.00016762,2]
[328622530,1717621842261,-24900.0,0.00016786,2]
[328622532,1717621842272,-293.65227552,0.0001729,2]
[328622551,1717621842437,-234.399943,0.0001739,2]
[328622553,1717621842451,-10480.39529953,0.00017898,2]
[328622555,1717621842460,-293.65227549,0.00018663,2]
[328622557,1717621842469,-1349.69129181,0.000189,2]
[328622559,1717621842479,-1354.21950592,0.0002,2]
[328622561,1717621842488,-931.42086602,0.00020035,2]
[328622563,1717621842498,-293.65227549,0.00020036,2]
[328622565,1717621842507,-798.62426698,0.00021127,2]
[328622567,1717621842517,-293.65227549,0.00021409,2]
[328622569,1717621842526,-150.0,0.000215,2]
[328622571,1717621842535,-160.25313399,0.00021816,2]
[328622573,1717621842545,-176.18304414,0.00021816,2]
[328622575,1717621842554,-12845.1977116,0.00021916,2]
[328622577,1717621842564,-722.63269775,0.00021916,2]
[328622899,1717621845119,-3266.44183566,0.00021916,2]
[328622901,1717621845129,-286.47075578,0.00021916,2]
[328622904,1717621845139,-430.51212565,0.00021916,2]
[328623039,1717621846400,-41.35773606,0.00021916,2]
[328623041,1717621846410,-225.02004134,0.00021916,2]
[328623043,1717621846419,-234.11604906,0.00021917,2]
[328624933,1717622995603,155.0,9.999e-05,2]
[328624988,1717623032490,-899.79419454,0.000189,2]
[328624992,1717623032500,-107.15898695,0.00019815,2]
[328624995,1717623032511,-93.14197937,0.00019815,2]
[328624998,1717623032521,-224.89733258,0.0002,2]
[328625001,1717623032530,-931.42086602,0.0002,2]
[328625003,1717623032539,-24900.0,0.00020137,2]
[328625005,1717623032547,-223.033374,0.00020597,2]
[328625007,1717623032557,-583.9417269,0.00021178,2]
[328625009,1717623032566,-153.0,0.0002126,2]
[328625011,1717623032575,-153.0,0.00021534,2]
[328625013,1717623032584,-167.80130028,0.00021815,2]
[328625015,1717623032592,-160.25313399,0.00021816,2]
[328625017,1717623032601,-153.0,0.000219,2]
[328625019,1717623032611,-306.0,0.000219,2]
[328625021,1717623032620,-153.0,0.000219,2]
[328625023,1717623032629,-153.0,0.000219,2]
[328625025,1717623032638,-500.0,0.00021915,2]
[328625026,1717623032647,-500.0,0.00021915,2]
[328625041,1717623032773,-500.0,0.00021915,2]
[328625043,1717623032782,-500.0,0.00021915,2]
[328625045,1717623032792,-500.0,0.00021915,2]
[328625047,1717623032801,-650.0,0.00021915,2]
[328625049,1717623032811,-500.0,0.00021915,2]
[328625051,1717623032820,-500.0,0.00021915,2]
[328625053,1717623032830,-500.0,0.00021915,2]
[328625055,1717623032839,-500.0,0.00021915,2]
[328625057,1717623032848,-500.0,0.00021915,2]
[328625059,1717623032858,-500.0,0.00021915,2]
[328625061,1717623032867,-500.0,0.00021915,2]
[328625063,1717623032876,-1512.45561284,0.00021916,2]
[328625270,1717623038717,-35565.2103147,0.00021916,2]
[328625327,1717623042658,-2365.96877633,0.00021916,2]
[328625328,1717623042669,-500.0,0.00021916,2]
[328625329,1717623042679,-433.97897151,0.00021916,2]
[328625330,1717623042689,-500.0,0.00021916,2]
[328625331,1717623042698,-247.32394762,0.00021916,2]
[328625332,1717623042708,-500.0,0.00021916,2]
[328625333,1717623042718,-11.30038613,0.00021916,2]
[328625581,1717623089474,2035.47539269,9.999e-05,2]
[328625583,1717623104591,515.24212184,9.999e-05,2]
[328625604,1717623961222,200000.0,0.00029661,40]
[328625605,1717623993993,200.30096632,9.999e-05,2]
[328625606,1717624036800,173598.97,0.00029661,40]
[328625695,1717624233129,-864.89975766,0.00019643,2]
[328625696,1717624233331,-2205.00195945,0.00019643,2]
[328625697,1717624233342,-212.9952081,0.00019659,2]
[328625698,1717624233352,-223.0333758,0.00019724,2]
[328625699,1717624233363,-7913.37404345,0.00019814,2]
[328625700,1717624233373,-1263.34938187,0.0002,2]
[328625701,1717624233382,-931.42086602,0.0002,2]
[328625702,1717624233393,-19824.0314472,0.00020597,2]
[328625834,1717624243292,-2000.0,0.00020597,2]
[328625850,1717624244082,-705.58448431,0.00020597,2]
[328625876,1717624246837,-742.73274109,0.00020597,2]
[328625884,1717624285722,156.86510884,9.999e-05,2]
[328625886,1717624293305,158.94239409,9.999e-05,2]
[328625889,1717624299037,522.77724391,9.999e-05,2]
[328625893,1717624305391,1708.17570709,9.999e-05,2]
[328625894,1717624309898,216.1777469,9.999e-05,2]
[328625895,1717624313512,284.3738385,0.000137,2]
[328625896,1717624315265,1653.96744481,9.999e-05,2]
[328625897,1717624322336,303.06719466,9.999e-05,2]
[328625898,1717624575698,3000.0,0.00013945,2]
[328625899,1717624762464,15499.221788,0.00013945,2]
[328625900,1717624762493,9400.778212,0.00013945,2]
[328625902,1717625084312,1099.91705711,0.00013924,2]
[328625977,1717625352283,17322.4284382,0.00013484,2]
[328626039,1717625431909,-2112.24824961,0.00014007,2]
[328626041,1717625431919,-11089.38713808,0.00014007,2]
[328626043,1717625431929,-1909.96781027,0.00014008,2]
[328626045,1717625431938,-451.7944376,0.0001403,2]
[328626047,1717625431948,-641.19695643,0.000149,2]
[328626049,1717625431957,-2202.03138212,0.00014994,2]
[328626051,1717625431968,-2927.8189714,0.00014994,2]
[328626503,1717625438808,-7664.87310348,0.00014994,2]
[328626504,1717625438819,-400.09687121,0.00014994,2]
[328626505,1717625438879,-7001.50130037,0.00014994,2]
[328626506,1717625438891,-958.42265065,0.00014994,2]
[328626507,1717625438903,-1544.13388645,0.00014994,2]
[328626517,1717625441695,-333.49093009,0.00014994,2]
[328626518,1717625441706,-761.07945367,0.00014994,2]
[328626519,1717625441719,-13661.80824685,0.00014994,2]
[328626520,1717625441729,-871.52616594,0.00015,2]
[328626521,1717625441738,-154.98450155,0.00015,2]
[328626522,1717625441748,-641.19695643,0.00016629,2]
[328626523,1717625441758,-641.19695643,0.00018359,2]
[328626524,1717625441772,-1871.84845361,0.000189,2]
[328626525,1717625441781,-323.96450678,0.00019002,2]
[328626526,1717625441790,-500.0,0.00019178,2]
[328626527,1717625441800,-500.0,0.00019178,2]
[328626528,1717625441811,-500.0,0.00019178,2]
[328626529,1717625441820,-500.0,0.00019178,2]
[328626530,1717625441829,-500.0,0.00019178,2]
[328626531,1717625441841,-500.0,0.00019178,2]
[328626532,1717625441852,-500.0,0.00019178,2]
[328626533,1717625441862,-615.08555867,0.00019178,2]
[328626534,1717625441872,-500.0,0.00019178,2]
[328626535,1717625441883,-500.0,0.00019178,2]
[328626536,1717625441892,-500.0,0.00019178,2]
[328626537,1717625441902,-500.0,0.00019178,2]
[328626538,1717625441911,-500.0,0.00019178,2]
[328626539,1717625441921,-500.0,0.00019178,2]
[328626540,1717625441932,-500.0,0.00019178,2]
[328626541,1717625441941,-500.0,0.00019178,2]
[328626542,1717625441951,-500.0,0.00019178,2]
[328626543,1717625441961,-500.0,0.00019178,2]
[328626544,1717625441970,-500.0,0.00019178,2]
[328626545,1717625441979,-500.0,0.00019178,2]
[328626546,1717625441990,-500.0,0.00019178,2]
[328626547,1717625441999,-500.0,0.00019178,2]
[328626548,1717625442009,-500.0,0.00019178,2]
[328626549,1717625442019,-500.0,0.00019178,2]
[328626550,1717625442028,-500.0,0.00019178,2]
[328626551,1717625442038,-500.0,0.00019178,2]
[328626552,1717625442047,-500.0,0.00019178,2]
[328626553,1717625442057,-300.0,0.00019178,2]
[328626554,1717625442067,-500.0,0.00019178,2]
[328626555,1717625442080,-500.0,0.00019178,2]
[328626556,1717625442090,-500.0,0.00019178,2]
[328626557,1717625442100,-500.0,0.00019178,2]
[328626558,1717625442110,-500.0,0.00019178,2]
[328626559,1717625442120,-500.0,0.00019178,2]
[328626560,1717625442129,-500.0,0.00019178,2]
[328626561,1717625442139,-500.0,0.00019178,2]
[328626562,1717625442148,-500.0,0.00019178,2]
[328626563,1717625442158,-500.0,0.00019178,2]
[328626564,1717625442168,-500.0,0.00019178,2]
[328626565,1717625442177,-500.0,0.00019178,2]
[328626566,1717625442186,-500.0,0.00019178,2]
[328626567,1717625442196,-151.0,0.00019178,2]
[328626568,1717625442206,-219.917125,0.00019178,2]
[328626569,1717625442215,-436.32918296,0.0002,10]
[328626570,1717625442225,-931.42086602,0.00020042,2]
[328626571,1717625442234,-176.31534731,0.00020043,2]
[328626572,1717625442245,-5362.89361462,0.00020079,2]
[328626573,1717625442256,-203.222798,0.00020079,2]
[328626574,1717625442265,-151.0,0.00020079,2]
[328626575,1717625442275,-219.917125,0.00020079,2]
[328626576,1717625442285,-641.19695643,0.00020088,2]
[328626577,1717625442294,-292.2198683,0.00020178,2]
[328626578,1717625442304,-153.0,0.00020178,2]
[328626579,1717625442313,-310.1132247,0.00020278,2]
[328626580,1717625442323,-292.2198683,0.00020278,2]
[328626581,1717625442333,-153.0,0.00020278,2]
[328626582,1717625442342,-153.0,0.00020438,2]
[328626583,1717625442351,-292.2198683,0.00020438,2]
[328626584,1717625442360,-306.0,0.00020456,2]
[328626585,1717625442369,-292.0141423,0.00020478,2]
[328626586,1717625442378,-306.0,0.00020478,2]
[328626587,1717625442386,-500.0,0.00020484,2]
[328626588,1717625442395,-197.13148774,0.00020484,2]
[328626589,1717625442405,-500.0,0.00020484,2]
[328626590,1717625442414,-500.0,0.00020484,2]
[328626591,1717625442423,-620.49561761,0.00020484,2]
[328626592,1717625442432,-500.0,0.00020484,2]
[328626593,1717625442441,-162.0,0.00020484,2]
[328626595,1717625442450,-500.0,0.00020484,2]
[328626596,1717625442459,-500.0,0.00020484,2]
[328626597,1717625442468,-500.0,0.00020484,2]
[328626598,1717625442478,-500.0,0.00020484,2]
[328626599,1717625442487,-312.80305608,0.00020484,2]
[328626600,1717625442496,-345.29569641,0.00020484,2]
[328626601,1717625442506,-637.81199424,0.00020484,2]
[328626602,1717625442516,-219.17150088,0.00020484,2]
[328626603,1717625442525,-500.0,0.00020484,2]
[328626604,1717625442535,-500.0,0.00020484,2]
[328626605,1717625442543,-500.0,0.00020484,2]
[328626606,1717625442553,-500.0,0.00020484,2]
[328626607,1717625442562,-500.0,0.00020484,2]
[328626608,1717625442571,-500.0,0.00020484,2]
[328626609,1717625442581,-500.0,0.00020484,2]
[328626610,1717625442590,-500.0,0.00020484,2]
[328626611,1717625442599,-500.0,0.00020484,2]
[328626612,1717625442608,-500.0,0.00020484,2]
[328626613,1717625442617,-500.0,0.00020484,2]
[328626614,1717625442626,-500.0,0.00020484,2]
[328626615,1717625442635,-500.0,0.00020484,2]
[328626616,1717625442643,-500.0,0.00020484,2]
[328626617,1717625442653,-500.0,0.00020484,2]
[328626618,1717625442662,-500.0,0.00020484,2]
[328626619,1717625442671,-4235.50878984,0.00020485,2]
[328626620,1717625442681,-723.49,0.00020578,3]
[328626621,1717625442690,-151.0,0.00020588,2]
[328626622,1717625442699,-151.0,0.00020588,2]
[328626623,1717625442708,-219.917125,0.00020588,2]
[328626624,1717625442717,-219.917125,0.00020588,2]
[328626625,1717625442726,-5281.08890292,0.00020592,7]
[328626626,1717625442736,-151.0,0.00020592,2]
[328626628,1717625442745,-199.881951,0.00020592,2]
[328626629,1717625442754,-151.130194,0.00020592,2]
[328626630,1717625442765,-151.0,0.00020592,2]
[328626631,1717625442775,-151.0,0.00020592,2]
[328626632,1717625442785,-151.0,0.00020592,2]
[328626634,1717625442795,-151.0,0.00020592,2]
[328626635,1717625442804,-219.917125,0.00020592,2]
[328626636,1717625442814,-14148.0057027,0.00020592,2]
[328626637,1717625442823,-151.0,0.00020594,2]
[328626638,1717625442832,-151.0,0.00020595,2]
[328626639,1717625442845,-151.0,0.00020595,2]
[328626640,1717625442854,-151.0,0.00020595,2]
[328626641,1717625442863,-2710.34258251,0.00020595,2]
[328626642,1717625442872,-184.364929,0.00020596,2]
[328626644,1717625442881,-151.0,0.00020596,2]
[328626646,1717625442890,-151.0,0.00020596,2]
[328626647,1717625442900,-184.364929,0.00020596,2]
[328626649,1717625442909,-151.0,0.00020596,2]
[328626650,1717625442919,-151.0,0.00020596,2]
[328626651,1717625442928,-151.0,0.00020596,2]
[328626652,1717625442937,-280.08275,0.00020596,2]
[328626653,1717625442946,-151.0,0.00020596,2]
[328626654,1717625442955,-219.917125,0.00020596,2]
[328626655,1717625442965,-9742.19579831,0.00020596,2]
[328626656,1717625442974,-7886.57956305,0.00020596,2]
[328626657,1717625442983,-286.47075578,0.00020597,2]
[328626658,1717625442992,-4829.54904746,0.00020597,2]
[328626676,1717625454000,923.52744316,0.00014,2]
[328626677,1717625471917,692.03285018,9.999e-05,2]
[328626678,1717625487167,154.98450155,9.999e-05,2]
[328626679,1717625488762,154.98450155,9.999e-05,2]
[328626680,1717625493144,164.52045217,9.999e-05,2]
[328626681,1717625495237,795.54276575,9.999e-05,2]
[328626682,1717625496060,261.81947008,9.999e-05,2]
[328626683,1717625502342,156.86510884,9.999e-05,2]
[328626684,1717625507329,1154.95106725,9.999e-05,2]
[328626685,1717625513584,241.82372492,9.999e-05,2]
[328626687,1717625522100,302.73262901,9.999e-05,2]
[328626688,1717625527997,158.94239409,9.999e-05,2]
[328626689,1717625534175,284.3738385,0.000137,2]
[328626690,1717625553415,216.1777469,9.999e-05,2]
[328626691,1717625599681,303.06719466,9.999e-05,2]
[328626715,1717626276200,150.0,0.00014,2]
[328626779,1717626615484,500.0,0.00029668,40]
[328626780,1717626616440,500.0,0.00029668,40]
[328626781,1717626616747,500.0,0.00029668,40]
[328626782,1717626617189,500.0,0.00029668,40]
[328626783,1717626617487,500.0,0.00029668,40]
[328626784,1717626618727,500.0,0.00029668,40]
[328626785,1717626619002,500.0,0.00029668,40]